bitfinex-derivatives/quotes_BTCF0:USTF0_20250803
["timestamp","ask_amount","ask_price","bid_price","bid_amount"]
[1754200749535,0.2597563,113710.0,113700.0,1.30849795]
[1754200749737,0.2597563,113710.0,113700.0,1.02073721]
[1754200750444,0.2959663,113710.0,113700.0,1.02073721]
[1754200753245,0.2959663,113710.0,113700.0,1.30849795]
[1754200753447,0.2959663,113710.0,113700.0,1.02073721]
[1754200753746,0.2949663,113710.0,113700.0,1.02073721]
[1754200753942,0.2949663,113710.0,113700.0,1.30849795]
[1754200755448,0.2949663,113710.0,113700.0,1.02073721]
[1754200756051,0.2949663,113710.0,113700.0,1.30849795]
[1754200757049,0.2803363,113710.0,113700.0,1.30849795]
[1754200757253,0.2949663,113710.0,113700.0,1.30849795]
[1754200757752,0.2949663,113710.0,113700.0,1.02073721]
[1754200775165,0.2949663,113710.0,113700.0,0.65993721]
[1754200775363,0.2949663,113710.0,113700.0,1.02073721]
[1754200778267,0.2949663,113710.0,113700.0,0.73297647]
[1754200778456,0.2949663,113710.0,113700.0,1.02073721]
[1754200778968,0.2949663,113710.0,113700.0,0.73297647]
[1754200779175,0.2949663,113710.0,113700.0,1.02073721]
[1754200795080,0.2949663,113710.0,113700.0,0.65993721]
[1754200795467,0.58302704,113710.0,113700.0,0.32471772]
[1754200795668,0.94382704,113710.0,113700.0,0.29979772]
[1754200795874,1.23158778,113710.0,113700.0,0.12387602]
[1754200796080,0.94382704,113710.0,113700.0,0.29979842]
[1754200796380,0.6560663,113710.0,113700.0,0.29979842]
[1754200796584,0.6560663,113710.0,113700.0,0.30917842]
[1754200796879,0.94382704,113710.0,113700.0,0.32335842]
[1754200798880,0.94541704,113710.0,113700.0,0.32534842]
[1754200800685,0.94541704,113710.0,113700.0,0.34099842]
[1754200801786,0.58461704,113710.0,113700.0,0.34099842]
[1754200802084,0.94541704,113710.0,113700.0,0.36551842]
[1754200802585,0.58461704,113710.0,113700.0,0.65327916]
[1754200802985,0.94541704,113710.0,113700.0,0.65327916]
[1754200803987,0.6576563,113710.0,113700.0,0.65327916]
[1754200804584,0.94541704,113710.0,113700.0,0.65327916]
[1754200804989,0.58461704,113710.0,113700.0,0.65327916]
[1754200805489,0.2968563,113710.0,113700.0,0.65327916]
[1754200805690,0.58461704,113710.0,113700.0,0.65327916]
[1754200808199,0.53525704,113710.0,113700.0,0.65327916]
[1754200808405,1.03243174,113720.0,113710.0,0.2968572]
[1754200808603,1.03243174,113720.0,113710.0,0.58461794]
[1754200810507,1.03343174,113720.0,113710.0,0.58461794]
[1754200811106,0.745671,113720.0,113710.0,0.58461794]
[1754200811309,1.03343174,113720.0,113710.0,0.58461794]
[1754200812412,0.745671,113720.0,113710.0,0.58461794]
[1754200812612,1.03343174,113720.0,113710.0,0.58461794]
[1754200812806,0.67263174,113720.0,113710.0,0.58461794]
[1754200813013,1.03343174,113720.0,113710.0,0.58461794]
[1754200816203,1.03343174,113720.0,113710.0,0.2968572]
[1754200816408,1.03343174,113720.0,113710.0,0.58461794]
[1754200817814,1.03343174,113720.0,113710.0,0.2968572]
[1754200820818,0.67263174,113720.0,113710.0,0.2968572]
[1754200821015,0.67263174,113720.0,113710.0,0.58461794]
[1754200821215,1.03343174,113720.0,113710.0,0.58461794]
[1754200822318,0.745671,113720.0,113710.0,0.58461794]
[1754200822619,1.03343174,113720.0,113710.0,0.58461794]
[1754200825318,0.67263174,113720.0,113710.0,0.58461794]
[1754200827419,1.03343174,113720.0,113710.0,0.58461794]
[1754200832831,0.745671,113720.0,113710.0,0.2968572]
[1754200833031,1.03343174,113720.0,113710.0,0.58461794]
[1754200834920,0.2969117,113720.0,113710.0,0.94468794]
[1754200835232,0.2969117,113720.0,113710.0,0.58388794]
[1754200835233,0.58467244,113720.0,113710.0,0.58388794]
[1754200835931,0.2969117,113720.0,113710.0,0.58388794]
[1754200837734,0.58467244,113720.0,113710.0,0.58388794]
[1754200839536,0.2969117,113720.0,113710.0,0.58388794]
[1754200839735,0.58467244,113720.0,113710.0,0.58388794]
[1754200839938,0.2969117,113720.0,113710.0,0.58388794]
[1754200844340,0.58467244,113720.0,113710.0,0.58388794]
[1754200848841,0.2969117,113720.0,113710.0,0.58388794]
[1754200849045,0.58467244,113720.0,113710.0,0.58388794]
[1754200857648,0.2969117,113720.0,113710.0,0.58388794]
[1754200857849,0.58467244,113720.0,113710.0,0.58388794]
[1754200862252,0.2969117,113720.0,113710.0,0.58388794]
[1754200862450,0.58467244,113720.0,113710.0,0.58388794]
[1754200865055,0.2969117,113720.0,113710.0,0.58388794]
[1754200865253,0.58467244,113720.0,113710.0,0.58388794]
[1754200869254,0.58467244,113720.0,113710.0,0.2961272]
[1754200869455,0.58467244,113720.0,113710.0,0.58388794]
[1754200877460,0.2969117,113720.0,113710.0,0.58388794]
[1754200877667,0.58467244,113720.0,113710.0,0.58388794]
[1754200880671,0.58467244,113720.0,113710.0,0.2961272]
[1754200880869,0.58467244,113720.0,113710.0,0.58388794]
[1754200882072,0.58467244,113720.0,113710.0,0.2961272]
[1754200882270,0.58467244,113720.0,113710.0,0.58388794]
[1754200896587,0.58467244,113720.0,113710.0,0.2961272]
[1754200896787,0.58467244,113720.0,113710.0,0.58388794]
[1754200904294,0.2969117,113720.0,113710.0,0.58388794]
[1754200904494,0.58467244,113720.0,113710.0,0.58388794]
[1754200913796,0.58467244,113720.0,113710.0,0.2961272]
[1754200914195,0.58467244,113720.0,113710.0,0.58388794]
[1754200915602,0.2969117,113720.0,113710.0,0.58388794]
[1754200915792,0.58467244,113720.0,113710.0,0.58388794]
[1754200919601,0.58467244,113720.0,113710.0,0.2961272]
[1754200919902,0.58467244,113720.0,113710.0,0.58388794]
[1754200920301,0.2969117,113720.0,113710.0,0.58388794]
[1754200920501,0.58467244,113720.0,113710.0,0.58388794]
[1754200923006,0.58467244,113720.0,113710.0,0.2961272]
[1754200923304,0.58467244,113720.0,113710.0,0.58388794]
[1754200938022,0.58467244,113720.0,113710.0,0.51144794]
[1754200938214,0.58467244,113720.0,113710.0,0.2572872]
[1754200938722,0.58467244,113720.0,113710.0,0.2737172]
[1754200942122,0.58467244,113720.0,113710.0,0.58430794]
[1754200950234,0.58467244,113720.0,113710.0,0.2965472]
[1754200950435,0.58467244,113720.0,113710.0,0.58430794]
[1754200952236,0.58467244,113720.0,113710.0,0.2965472]
[1754200952426,0.58467244,113720.0,113710.0,0.58430794]
[1754200960236,0.2969117,113720.0,113710.0,0.58430794]
[1754200960436,0.58467244,113720.0,113710.0,0.58430794]
[1754200964541,0.58467244,113720.0,113710.0,0.2965472]
[1754200964738,0.58467244,113720.0,113710.0,0.58430794]
[1754200968339,0.58467244,113720.0,113710.0,0.2965472]
[1754200973748,0.2969117,113720.0,113710.0,0.2965472]
[1754200973948,0.58467244,113720.0,113710.0,0.58430794]
[1754200983851,0.2969117,113720.0,113710.0,0.58430794]
[1754200984051,0.58467244,113720.0,113710.0,0.58430794]
[1754200993961,0.58467244,113720.0,113710.0,0.2965472]
[1754200994158,0.58467244,113720.0,113710.0,0.58430794]
[1754200997963,0.58467244,113720.0,113710.0,0.2965472]
[1754200998162,0.58467244,113720.0,113710.0,0.58430794]
[1754201001659,0.58467244,113720.0,113710.0,0.2965472]
[1754201003766,0.58467244,113720.0,113710.0,0.58430794]
[1754201007272,0.58467244,113720.0,113710.0,0.2965472]
[1754201007465,0.58467244,113720.0,113710.0,0.58430794]
[1754201009173,0.58467244,113720.0,113710.0,0.2965472]
[1754201009374,0.58467244,113720.0,113710.0,0.58430794]
[1754201014277,0.2969117,113720.0,113710.0,0.58430794]
[1754201014575,0.58467244,113720.0,113710.0,0.58430794]
[1754201015770,0.58467244,113720.0,113710.0,0.2965472]
[1754201015975,0.58467244,113720.0,113710.0,0.58430794]
[1754201022381,0.58467244,113720.0,113710.0,0.2965472]
[1754201022582,0.58467244,113720.0,113710.0,0.58430794]
[1754201024278,0.2969117,113720.0,113710.0,0.58430794]
[1754201024481,0.58467244,113720.0,113710.0,0.58430794]
[1754201029095,0.58467244,113720.0,113710.0,0.2965472]
[1754201029390,0.58467244,113720.0,113710.0,0.58430794]
[1754201031591,0.58467244,113720.0,113710.0,0.2965472]
[1754201033487,0.2940972,113710.0,113700.0,0.47248402]
[1754201033688,1.23041868,113710.0,113700.0,0.24484862]
[1754201034085,1.23041868,113710.0,113700.0,0.06892602]
[1754201034288,0.0439814,113700.0,113680.0,0.664439]
[1754201034492,0.58188884,113690.0,113680.0,0.2674507]
[1754201034680,0.2227736,113680.0,113670.0,1.5096087]
[1754201034880,0.94270434,113680.0,113670.0,0.04752]
[1754201035087,0.94270434,113680.0,113670.0,0.2716691]
[1754201035289,0.94270434,113680.0,113670.0,0.2964691]
[1754201036697,0.94270434,113680.0,113670.0,0.2994691]
[1754201038893,0.94270434,113680.0,113670.0,0.3024691]
[1754201039694,0.94270434,113680.0,113670.0,0.2381591]
[1754201039894,0.94270434,113680.0,113670.0,0.1819691]
[1754201040095,0.94270434,113680.0,113670.0,0.2157291]
[1754201040388,0.6549436,113680.0,113670.0,0.2610791]
[1754201040596,0.94270434,113680.0,113670.0,0.2771191]
[1754201042887,0.94270434,113680.0,113670.0,0.3004991]
[1754201045496,0.94270434,113680.0,113670.0,0.2771191]
[1754201050301,0.6549436,113680.0,113670.0,0.2771191]
[1754201050599,0.94270434,113680.0,113670.0,0.2771191]
[1754201061503,0.94270434,113680.0,113670.0,0.006]
[1754201062111,0.94270434,113680.0,113670.0,0.1819689]
[1754201063406,0.96602408,113680.0,113670.0,0.1819689]
[1754201064110,0.94270434,113680.0,113670.0,0.1819689]
[1754201064407,0.96605561,113680.0,113670.0,0.1819689]
[1754201065710,0.96605561,113680.0,113670.0,0.2157289]
[1754201068218,0.96605561,113680.0,113670.0,0.03976]
[1754201068518,0.96605561,113680.0,113670.0,0.006]
[1754201070021,0.96605561,113680.0,113670.0,0.1819688]
[1754201070920,0.96605561,113680.0,113670.0,0.2164188]
[1754201071220,0.96605561,113680.0,113670.0,0.2624788]
[1754201071419,0.96605561,113680.0,113670.0,0.2766688]
[1754201072924,0.96604902,113680.0,113670.0,0.2766688]
[1754201074017,0.96604902,113680.0,113670.0,0.2624788]
[1754201074917,0.96604902,113680.0,113670.0,0.2766688]
[1754201075221,0.60524902,113680.0,113670.0,0.2766688]
[1754201075424,0.96604902,113680.0,113670.0,0.2766688]
[1754201082120,0.94270434,113680.0,113670.0,0.2766688]
[1754201084127,0.58190434,113680.0,113670.0,0.2766688]
[1754201084321,0.94270434,113680.0,113670.0,0.2766688]
[1754201085725,0.58190434,113680.0,113670.0,0.2766688]
[1754201085935,0.94270434,113680.0,113670.0,0.2766688]
[1754201088132,0.94270434,113680.0,113670.0,0.1007]
[1754201088325,0.94270434,113680.0,113670.0,0.006]
[1754201090137,1.23046508,113680.0,113670.0,0.006]
[1754201090532,0.94270434,113680.0,113670.0,0.006]
[1754201091244,0.94270434,113680.0,113670.0,0.1819689]
[1754201092237,0.94270434,113680.0,113670.0,0.006]
[1754201095646,0.6549436,113680.0,113670.0,0.1819688]
[1754201095829,0.94270434,113680.0,113670.0,0.1819688]
[1754201097136,0.94270434,113680.0,113670.0,0.006]
[1754201097443,0.96610088,113680.0,113670.0,0.006]
[1754201098741,0.96610088,113680.0,113670.0,0.2768188]
[1754201098940,0.96610088,113680.0,113670.0,0.3016088]
[1754201100845,0.96610088,113680.0,113670.0,0.2768188]
[1754201104744,0.96610088,113680.0,113670.0,0.2622188]
[1754201113152,0.60530088,113680.0,113670.0,0.2622188]
[1754201113351,0.96610088,113680.0,113670.0,0.2622188]
[1754201114458,0.94270434,113680.0,113670.0,0.2622188]
[1754201115947,0.94270434,113680.0,113670.0,0.08625]
[1754201116254,0.94270434,113680.0,113670.0,0.006]
[1754201116461,1.25404296,113680.0,113670.0,0.006]
[1754201117350,0.1759844,113660.0,113650.0,0.01163]
[1754201117550,0.94160514,113660.0,113650.0,0.01163]
[1754201117855,0.6538444,113660.0,113650.0,0.1876299]
[1754201118054,0.6538444,113660.0,113650.0,0.2709599]
[1754201118256,0.94160514,113660.0,113650.0,0.3103499]
[1754201119758,0.94160514,113660.0,113650.0,0.3123499]
[1754201119959,0.94160514,113660.0,113650.0,0.3163499]
[1754201120157,0.94160514,113660.0,113650.0,0.32515668]
[1754201126063,0.94160514,113660.0,113650.0,0.34329744]
[1754201130070,0.58080514,113660.0,113650.0,0.34329744]
[1754201130265,0.94160514,113660.0,113650.0,0.34329744]
[1754201132073,0.58080514,113660.0,113650.0,0.34329744]
[1754201132271,0.94160514,113660.0,113650.0,0.34329744]
[1754201135374,0.94160514,113660.0,113650.0,0.33449066]
[1754201144172,0.6538444,113660.0,113650.0,0.33449066]
[1754201144372,0.94160514,113660.0,113650.0,0.33449066]
[1754201145877,0.6538444,113660.0,113650.0,0.33449066]
[1754201146079,0.94160514,113660.0,113650.0,0.33449066]
[1754201150181,0.6538444,113660.0,113650.0,0.33449066]
[1754201150377,0.94160514,113660.0,113650.0,0.33449066]
[1754201157586,0.94160514,113660.0,113650.0,0.3163499]
[1754201158087,0.94160514,113660.0,113650.0,0.14035]
[1754201158288,0.94160514,113660.0,113650.0,0.02746]
[1754201158587,0.94160514,113660.0,113650.0,0.01763]
[1754201159690,0.94160514,113660.0,113650.0,0.01563]
[1754201165089,0.6538444,113660.0,113650.0,0.1916299]
[1754201165389,0.94160514,113660.0,113650.0,0.1916299]
[1754201167092,0.58080514,113660.0,113650.0,0.1916299]
[1754201167293,0.94160514,113660.0,113650.0,0.1916299]
[1754201170691,0.58080514,113660.0,113650.0,0.1916299]
[1754201170887,0.94160514,113660.0,113650.0,0.1916299]
[1754201174197,0.58080514,113660.0,113650.0,0.1916299]
[1754201174397,0.94160514,113660.0,113650.0,0.1916299]
[1754201178216,0.58080514,113660.0,113650.0,0.1916299]
[1754201178513,0.94160514,113660.0,113650.0,0.1916299]
[1754201178716,0.94160514,113660.0,113650.0,0.2233999]
[1754201182321,0.94160514,113660.0,113650.0,0.2329099]
[1754201182520,0.94160514,113660.0,113650.0,0.2714199]
[1754201184226,0.94160514,113660.0,113650.0,0.2855099]
[1754201192633,0.58080514,113660.0,113650.0,0.2855099]
[1754201192931,0.94160514,113660.0,113650.0,0.2855099]
[1754201203639,0.6538444,113660.0,113650.0,0.2855099]
[1754201203838,0.94160514,113660.0,113650.0,0.2855099]
[1754201205638,0.94160514,113660.0,113650.0,0.10951]
[1754201206138,0.94160514,113660.0,113650.0,0.09542]
[1754201209636,0.6538444,113660.0,113650.0,0.27142]
[1754201209836,0.94160514,113660.0,113650.0,0.27142]
[1754201211837,0.94160514,113660.0,113650.0,0.2853]
[1754201212143,0.94160514,113660.0,113650.0,0.2843]
[1754201213831,0.94160514,113660.0,113650.0,0.2823]
[1754201214442,0.94160514,113660.0,113650.0,0.1063]
[1754201216942,0.94160514,113660.0,113650.0,0.06065]
[1754201217240,0.94160514,113660.0,113650.0,0.02214]
[1754201217642,0.94160514,113660.0,113650.0,0.01263]
[1754201226950,0.58080514,113660.0,113650.0,0.01263]
[1754201227152,0.94160514,113660.0,113650.0,0.01263]
[1754201241971,0.58080514,113660.0,113650.0,0.01263]
[1754201242174,0.94160514,113660.0,113650.0,0.01263]
[1754201243977,0.6538444,113660.0,113650.0,0.01263]
[1754201244180,0.94160514,113660.0,113650.0,0.01263]
[1754201250881,0.94160514,113660.0,113650.0,0.1886299]
[1754201253586,0.58080514,113660.0,113650.0,0.1886299]
[1754201253776,0.94160514,113660.0,113650.0,0.1886299]
[1754201256982,0.58080514,113660.0,113650.0,0.23763119]
[1754201257187,0.58080514,113660.0,113650.0,0.59429064]
[1754201257389,0.58080514,113660.0,113650.0,0.3065299]
[1754201258788,0.58080514,113660.0,113650.0,0.59429064]
[1754201266395,0.2930444,113660.0,113650.0,0.59429064]
[1754201266691,0.58080514,113660.0,113650.0,0.59429064]
[1754201269392,0.2930444,113660.0,113650.0,0.59429064]
[1754201269595,0.1759844,113660.0,113650.0,0.95509064]
[1754201270093,0.1759844,113660.0,113650.0,0.6673299]
[1754201270286,0.1759844,113660.0,113650.0,0.95509064]
[1754201271596,0.1759844,113660.0,113650.0,1.13105863]
[1754201271797,0.3079656,113670.0,113660.0,0.2938847]
[1754201271994,0.59572634,113670.0,113660.0,0.94244544]
[1754201272499,0.62021634,113670.0,113660.0,0.94244544]
[1754201273098,0.62221634,113670.0,113660.0,0.94244544]
[1754201273996,0.65642634,113670.0,113660.0,0.94244544]
[1754201274300,0.68325634,113670.0,113660.0,0.94244544]
[1754201275804,0.3954956,113670.0,113660.0,0.94244544]
[1754201275990,0.68325634,113670.0,113660.0,0.94244544]
[1754201276300,0.72033634,113670.0,113660.0,0.94244544]
[1754201276500,0.62455634,113670.0,113660.0,0.94244544]
[1754201276701,0.3109656,113670.0,113660.0,0.94244544]
[1754201277501,0.62321634,113670.0,113660.0,0.94244544]
[1754201277689,0.68325634,113670.0,113660.0,0.94244544]
[1754201277895,0.72033634,113670.0,113660.0,0.94244544]
[1754201281496,1.00809708,113670.0,113660.0,0.2232047]
[1754201281803,1.36889708,113670.0,113660.0,0.1759847]
[1754201282004,1.00809708,113670.0,113660.0,0.1759847]
[1754201282204,1.36889708,113670.0,113660.0,0.1759847]
[1754201283200,0.2925847,113660.0,113650.0,0.2316171]
[1754201283407,0.94114544,113660.0,113650.0,0.2316171]
[1754201283904,0.94114544,113660.0,113650.0,0.3119771]
[1754201284498,0.94114544,113660.0,113650.0,0.2316171]
[1754201284997,0.94214544,113660.0,113650.0,0.2316171]
[1754201286109,0.94314544,113660.0,113650.0,0.2316171]
[1754201286907,0.94314544,113660.0,113650.0,0.1876204]
[1754201287505,0.94314544,113660.0,113650.0,0.2197304]
[1754201287706,0.94214544,113660.0,113650.0,0.2197304]
[1754201288001,0.94514544,113660.0,113650.0,0.01163]
[1754201288203,0.94514544,113660.0,113650.0,0.1876301]
[1754201288507,0.94414544,113660.0,113650.0,0.1876301]
[1754201288710,0.94614544,113660.0,113650.0,0.1876301]
[1754201289305,0.94614544,113660.0,113650.0,0.01163]
[1754201289900,0.94614544,113660.0,113650.0,0.1876301]
[1754201292009,0.94614544,113660.0,113650.0,0.2197401]
[1754201292807,0.94614544,113660.0,113650.0,0.01163]
[1754201294903,0.94614544,113660.0,113650.0,0.1876301]
[1754201295104,0.94614544,113660.0,113650.0,0.3067901]
[1754201295304,0.94614544,113660.0,113650.0,0.2828801]
[1754201295508,0.94614544,113660.0,113650.0,0.2679901]
[1754201298811,0.94614544,113660.0,113650.0,0.09199]
[1754201299412,0.94614544,113660.0,113650.0,0.05988]
[1754201303611,0.94614544,113660.0,113650.0,0.0436]
[1754201304113,0.94614544,113660.0,113650.0,0.02148]
[1754201305114,0.94614544,113660.0,113650.0,0.01163]
[1754201307017,0.94614544,113660.0,113650.0,0.1876301]
[1754201309015,0.94614544,113660.0,113650.0,0.2358801]
[1754201309219,0.58534544,113660.0,113650.0,0.59634084]
[1754201310518,0.2975847,113660.0,113650.0,0.59634084]
[1754201310710,0.2509147,113660.0,113650.0,0.59634084]
[1754201310910,0.2509146,113660.0,113650.0,0.95714084]
[1754201311110,0.07493,113660.0,113650.0,0.95714084]
[1754201311320,0.1809846,113660.0,113650.0,0.95714084]
[1754201313314,0.2053046,113660.0,113650.0,0.95714084]
[1754201313514,0.2650946,113660.0,113650.0,0.95714084]
[1754201314117,0.2796146,113660.0,113650.0,0.95714084]
[1754201314422,0.3008946,113660.0,113650.0,0.95714084]
[1754201318926,0.3008946,113660.0,113650.0,0.59634084]
[1754201319123,0.3008946,113660.0,113650.0,0.95714084]
[1754201320826,0.3008946,113660.0,113650.0,0.6693801]
[1754201321028,0.3008946,113660.0,113650.0,0.95714084]
[1754201322324,0.12491,113660.0,113650.0,0.95714084]
[1754201324628,0.12491,113660.0,113650.0,0.6693801]
[1754201324829,0.12491,113660.0,113650.0,0.95714084]
[1754201326232,0.3008946,113660.0,113650.0,0.95714084]
[1754201326931,0.58865534,113660.0,113650.0,0.95714084]
[1754201327425,0.51527534,113660.0,113650.0,0.95714084]
[1754201327630,0.11039,113660.0,113650.0,0.95714084]
[1754201327830,0.05457,113660.0,113650.0,0.95714084]
[1754201328128,0.03025,113660.0,113650.0,0.95714084]
[1754201328832,0.03025,113660.0,113650.0,0.97162263]
[1754201330037,0.02106,113660.0,113650.0,0.97162263]
[1754201330842,0.02106,113660.0,113650.0,1.33242263]
[1754201333537,0.02106,113660.0,113650.0,1.59786263]
[1754201333734,0.02106,113660.0,113650.0,1.23706263]
[1754201334032,0.1970446,113660.0,113650.0,0.94930189]
[1754201334235,0.2305546,113660.0,113650.0,1.23706263]
[1754201334538,0.2650946,113660.0,113650.0,1.23706263]
[1754201334732,0.3008946,113660.0,113650.0,0.94930189]
[1754201334932,0.58865534,113660.0,113650.0,1.23706263]
[1754201335236,0.58865534,113660.0,113650.0,0.94930189]
[1754201335536,0.58865534,113660.0,113650.0,1.23706263]
[1754201342737,0.58865534,113660.0,113650.0,0.94930189]
[1754201343035,0.58865534,113660.0,113650.0,1.23706263]
[1754201343632,0.3008946,113660.0,113650.0,1.23706263]
[1754201343834,0.58865534,113660.0,113650.0,1.23706263]
[1754201344335,0.58865534,113660.0,113650.0,0.94930189]
[1754201344636,0.58865534,113660.0,113650.0,1.23706263]
[1754201345241,0.3008946,113660.0,113650.0,1.23706263]
[1754201345539,0.58865534,113660.0,113650.0,1.23706263]
[1754201349744,0.3008946,113660.0,113650.0,1.23706263]
[1754201349934,0.58865534,113660.0,113650.0,1.23706263]
[1754201350137,0.58865534,113660.0,113650.0,0.94930189]
[1754201350433,0.58865534,113660.0,113650.0,1.23706263]
[1754201351041,0.57413534,113660.0,113650.0,1.23706263]
[1754201351340,0.2518346,113660.0,113650.0,1.23706263]
[1754201351639,0.1809841,113660.0,113650.0,1.23706263]
[1754201352635,0.1809841,113660.0,113650.0,0.94930189]
[1754201352843,0.2055241,113660.0,113650.0,1.23706263]
[1754201353240,0.2393341,113660.0,113650.0,1.23706263]
[1754201353636,0.2308341,113660.0,113650.0,1.23706263]
[1754201354041,0.2308341,113660.0,113650.0,1.2382659]
[1754201354339,0.2308341,113660.0,113650.0,0.9728259]
[1754201354540,0.2308341,113660.0,113650.0,1.2387059]
[1754201355036,0.58890484,113660.0,113650.0,0.68506516]
[1754201355241,0.94970484,113660.0,113650.0,0.21316466]
[1754201357233,0.6619441,113660.0,113650.0,0.21316466]
[1754201357433,0.94970484,113660.0,113650.0,0.21316466]
[1754201361844,0.94970484,113660.0,113650.0,0.03716506]
[1754201362045,0.94970484,113660.0,113650.0,0.02731506]
[1754201366542,0.94970484,113660.0,113650.0,0.20331466]
[1754201367048,0.94970484,113660.0,113650.0,0.02731506]
[1754201369850,0.94970484,113660.0,113650.0,0.20331456]
[1754201376948,0.58890484,113660.0,113650.0,0.20331456]
[1754201377152,0.94970484,113660.0,113650.0,0.20331456]
[1754201377558,0.94970484,113660.0,113650.0,0.02731506]
[1754201379254,0.94970484,113660.0,113650.0,0.20331426]
[1754201380656,0.94970484,113660.0,113650.0,0.02731506]
[1754201381947,0.58890484,113660.0,113650.0,0.02731506]
[1754201382153,0.94970484,113660.0,113650.0,0.02731506]
[1754201388360,1.23746558,113660.0,113650.0,0.02731506]
[1754201388551,1.26052354,113660.0,113650.0,0.02731506]
[1754201388748,0.1760147,113640.0,113630.0,0.03343]
[1754201388952,0.2961602,113630.0,113620.0,0.2939546]
[1754201389258,0.58392094,113630.0,113620.0,0.2939546]
[1754201391059,0.2961911,113610.0,113600.0,0.3380111]
[1754201391249,1.23251258,113610.0,113600.0,0.2939921]
[1754201391761,1.23151258,113610.0,113600.0,0.36568016]
[1754201391949,1.23151258,113610.0,113600.0,0.18960806]
[1754201392354,1.23151258,113610.0,113600.0,0.19260806]
[1754201392762,0.91192494,113610.0,113600.0,0.19460806]
[1754201393563,0.91192494,113610.0,113600.0,0.37068466]
[1754201394458,0.91192494,113610.0,113600.0,0.19460806]
[1754201394664,0.91192494,113610.0,113600.0,0.37068466]
[1754201405174,0.55112494,113610.0,113600.0,0.37068466]
[1754201405681,0.2951911,113610.0,113600.0,0.37068466]
[1754201407277,0.55112494,113610.0,113600.0,0.37068466]
[1754201407873,0.3080986,113620.0,113610.0,0.1760612]
[1754201408074,0.3812939,113620.0,113610.0,0.6564912]
[1754201408271,0.3812939,113620.0,113610.0,0.91242504]
[1754201408469,0.3812939,113620.0,113610.0,0.6564912]
[1754201409078,0.3812939,113620.0,113610.0,0.6574912]
[1754201410987,0.3812939,113620.0,113610.0,0.6594912]
[1754201412188,0.3812939,113620.0,113610.0,0.2986912]
[1754201412393,0.3812939,113620.0,113610.0,0.6594912]
[1754201413290,0.3812939,113620.0,113610.0,0.2986912]
[1754201413490,0.3812939,113620.0,113610.0,0.6594912]
[1754201415382,0.3812939,113620.0,113610.0,0.2986912]
[1754201415688,0.3812939,113620.0,113610.0,0.6594912]
[1754201417087,0.70475194,113630.0,113610.0,0.48343]
[1754201417295,0.381272,113630.0,113620.0,0.2956756]
[1754201422392,0.2788356,113620.0,113610.0,0.6416111]
[1754201422598,0.90998944,113620.0,113610.0,0.2096111]
[1754201422798,0.9419365,113620.0,113610.0,0.2564111]
[1754201422989,0.9419365,113620.0,113610.0,0.2956911]
[1754201423890,0.9419365,113620.0,113610.0,0.2966911]
[1754201424796,0.90992849,113620.0,113610.0,0.2966911]
[1754201424993,0.90992849,113620.0,113610.0,0.2986911]
[1754201425500,0.54912849,113620.0,113610.0,0.2986911]
[1754201426197,0.2932556,113620.0,113610.0,0.2986911]
[1754201427591,0.54912849,113620.0,113610.0,0.2986911]
[1754201428398,0.54912849,113620.0,113610.0,0.2594111]
[1754201429098,0.54912849,113620.0,113610.0,0.2989511]
[1754201437610,0.2932556,113620.0,113610.0,0.2989511]
[1754201437811,0.54912849,113620.0,113610.0,0.2989511]
[1754201440104,0.54912849,113620.0,113610.0,0.1790611]
[1754201440411,0.54912849,113620.0,113610.0,0.2114111]
[1754201440609,0.54912849,113620.0,113610.0,0.2569911]
[1754201440811,0.54912849,113620.0,113610.0,0.2965311]
[1754201444812,0.58111145,113620.0,113610.0,0.2965311]
[1754201446712,0.58111145,113620.0,113610.0,0.1790611]
[1754201446912,1.2297673,113620.0,113610.0,0.003]
[1754201447309,0.94191145,113620.0,113610.0,0.003]
[1754201449520,0.94191145,113620.0,113610.0,0.1790611]
[1754201450814,0.90995937,113620.0,113610.0,0.1790611]
[1754201454920,0.90995937,113620.0,113610.0,0.003]
[1754201459627,0.6540556,113620.0,113610.0,0.003]
[1754201460524,0.90995937,113620.0,113610.0,0.003]
[1754201469929,0.54915937,113620.0,113610.0,0.003]
[1754201470130,0.90995937,113620.0,113610.0,0.003]
[1754201472736,0.94196884,113620.0,113610.0,0.003]
[1754201473042,0.58116884,113620.0,113610.0,0.003]
[1754201473543,0.94196884,113620.0,113610.0,0.003]
[1754201477953,0.58116884,113620.0,113610.0,0.003]
[1754201478154,0.94196884,113620.0,113610.0,0.003]
[1754201479148,0.58116884,113620.0,113610.0,0.003]
[1754201479356,0.94196884,113620.0,113610.0,0.003]
[1754201491852,0.58116884,113620.0,113610.0,0.2607411]
[1754201492045,0.58116884,113620.0,113610.0,0.3002511]
[1754201494557,0.94196884,113620.0,113610.0,0.3002511]
[1754201495257,0.2932556,113620.0,113610.0,0.3002511]
[1754201495457,0.58116884,113620.0,113610.0,0.3002511]
[1754201495858,0.94196884,113620.0,113610.0,0.3002511]
[1754201496663,0.58116884,113620.0,113610.0,0.58816434]
[1754201498666,0.58116884,113620.0,113610.0,0.3002511]
[1754201498869,0.94196884,113620.0,113610.0,0.3002511]
[1754201499064,0.58116884,113620.0,113610.0,0.3002511]
[1754201499968,0.6540556,113620.0,113610.0,0.3002511]
[1754201500370,0.58116884,113620.0,113610.0,0.3002511]
[1754201500969,0.58116884,113620.0,113610.0,0.58816434]
[1754201508371,0.58116884,113620.0,113610.0,0.3002511]
[1754201508576,0.58116884,113620.0,113610.0,0.58816434]
[1754201511677,0.57926884,113620.0,113610.0,0.58816434]
[1754201512579,0.57926884,113620.0,113610.0,0.3002511]
[1754201512779,0.57926884,113620.0,113610.0,0.58816434]
[1754201524093,0.2913556,113620.0,113610.0,0.58816434]
[1754201524486,0.57926884,113620.0,113610.0,0.58816434]
[1754201525094,0.57926884,113620.0,113610.0,0.3002511]
[1754201525282,0.57926884,113620.0,113610.0,0.58816434]
[1754201530489,0.1760457,113620.0,113610.0,0.94796434]
[1754201530793,0.71419574,113630.0,113620.0,0.2954157]
[1754201530992,0.71419574,113630.0,113620.0,0.58332894]
[1754201532597,0.2890021,113640.0,113630.0,0.2954002]
[1754201532796,0.3822521,113640.0,113630.0,0.58331344]
[1754201532992,0.67016534,113640.0,113630.0,0.58331344]
[1754201533492,0.67016534,113640.0,113630.0,0.94411344]
[1754201534094,0.67116534,113640.0,113630.0,0.94411344]
[1754201534894,0.67216534,113640.0,113630.0,0.94411344]
[1754201536095,0.67216534,113640.0,113630.0,0.9530934]
[1754201536496,0.3842521,113640.0,113630.0,0.9530934]
[1754201536692,0.67216534,113640.0,113630.0,0.9530934]
[1754201537898,0.3842521,113640.0,113630.0,0.9530934]
[1754201538088,0.67216534,113640.0,113630.0,0.66518016]
[1754201538288,0.67216534,113640.0,113630.0,0.9530934]
[1754201546100,0.3842521,113640.0,113630.0,0.9530934]
[1754201546301,0.67216534,113640.0,113630.0,0.9530934]
[1754201546803,0.3842521,113640.0,113630.0,0.9530934]
[1754201547002,0.67216534,113640.0,113630.0,0.9530934]
[1754201547503,0.67216534,113640.0,113630.0,0.66518016]